fUST/lending_fUST_20240428
["ID","MTS","AMOUNT","RATE_DAILY","PERIOD"]
[323755768,1714244114608,-500.0,0.00039726,30]
[323755769,1714244114632,-1184.26634997,0.00039726,49]
[323755770,1714244114655,-500.0,0.00039726,30]
[323755771,1714244114682,-500.0,0.00039726,30]
[323755772,1714244114709,-1816.51,0.00039726,30]
[323755773,1714244114732,-315.01975267,0.00039726,30]
[323755774,1714244114756,-500.0,0.00039726,30]
[323755775,1714244114781,-632.65078007,0.00039726,30]
[323755776,1714244114805,-172.62077538,0.00039726,30]
[323755777,1714244114830,-1439.09,0.00039726,30]
[323755778,1714244114853,-500.0,0.00039726,30]
[323755779,1714244114878,-500.0,0.00039726,30]
[323755780,1714244114903,-500.0,0.00039726,30]
[323755781,1714244114937,-500.0,0.00039726,30]
[323755782,1714244114961,-500.0,0.00039726,30]
[323755783,1714244114985,-500.0,0.00039726,30]
[323755784,1714244115009,-500.0,0.00039726,30]
[323755785,1714244115032,-1540.02,0.00039726,30]
[323755786,1714244115055,-500.0,0.00039726,30]
[323755787,1714244115079,-500.0,0.00039726,20]
[323755788,1714244115102,-500.0,0.00039726,30]
[323755789,1714244115125,-500.0,0.00039726,30]
[323755790,1714244115148,-1284.71,0.00039726,30]
[323755791,1714244115252,-500.0,0.00039726,30]
[323755792,1714244115292,-500.0,0.00039726,31]
[323755793,1714244115315,-500.0,0.00039726,32]
[323755794,1714244115350,-503.69,0.00039726,30]
[323755795,1714244115383,-500.0,0.00039726,33]
[323755796,1714244115407,-500.0,0.00039726,34]
[323755797,1714244115436,-500.0,0.00039726,30]
[323755798,1714244115460,-500.0,0.00039726,35]
[323755799,1714244115483,-500.0,0.00039726,36]
[323755800,1714244115507,-500.0,0.00039726,37]
[323755801,1714244115530,-500.0,0.00039726,38]
[323755802,1714244115554,-500.0,0.00039726,39]
[323755803,1714244115577,-500.0,0.00039726,40]
[323755804,1714244115602,-500.0,0.00039726,41]
[323755805,1714244115626,-500.0,0.00039726,42]
[323755806,1714244115650,-500.0,0.00039726,43]
[323755807,1714244115676,-500.0,0.00039726,44]
[323755808,1714244115702,-500.0,0.00039726,45]
[323755809,1714244115727,-500.0,0.00039726,46]
[323755810,1714244115750,-500.0,0.00039726,30]
[323755811,1714244115774,-500.0,0.00039726,47]
[323755812,1714244115800,-500.0,0.00039726,48]
[323755813,1714244115823,-523.57230507,0.00039726,49]
[323755814,1714244115848,-853.96,0.00039726,30]
[323755815,1714244115872,-500.0,0.00039726,30]
[323755816,1714244115895,-938.69,0.00039726,30]
[323755817,1714244115918,-504.06433614,0.00039726,30]
[323755818,1714244115944,-510.04599126,0.00039726,30]
[323755819,1714244115968,-742.4,0.00039726,30]
[323755820,1714244115991,-630.32,0.00039726,30]
[323755821,1714244116015,-690.82,0.00039726,30]
[323755822,1714244116039,-500.0,0.00039726,30]
[323755823,1714244116062,-565.69550222,0.00039726,30]
[323755824,1714244116086,-503.62595829,0.00039726,30]
[323755825,1714244116111,-500.0,0.00039726,30]
[323755826,1714244116134,-2146.56,0.00039726,30]
[323755827,1714244116158,-890.54,0.00039726,30]
[323755828,1714244116184,-3420.14,0.00039726,30]
[323755829,1714244116207,-707.55,0.00039726,30]
[323755830,1714244116230,-500.0,0.00039726,30]
[323755831,1714244116253,-500.0,0.00039726,30]
[323755832,1714244116277,-500.0,0.00039726,30]
[323755833,1714244116301,-504.37,0.00039726,30]
[323755834,1714244116324,-500.0,0.00039726,30]
[323755835,1714244116347,-504.27221391,0.00039726,30]
[323755836,1714244116370,-500.0,0.00039726,30]
[323755837,1714244116394,-151.0,0.00039726,30]
[323755838,1714244116419,-500.0,0.00039726,30]
[323755839,1714244116446,-500.0,0.00039726,30]
[323755840,1714244116561,-500.0,0.00039726,30]
[323755841,1714244116590,-500.0,0.00039726,30]
[323755842,1714244116614,-2484.61,0.00039726,30]
[323755843,1714244116639,-500.0,0.00039726,30]
[323755844,1714244116665,-1618.93,0.00039726,30]
[323755845,1714244116689,-1047.95,0.00039726,30]
[323755846,1714244116712,-500.0,0.00039726,30]
[323755847,1714244116738,-1874.47,0.00039726,30]
[323755848,1714244116765,-500.0,0.00039726,30]
[323755849,1714244116790,-500.0,0.00039726,30]
[323755850,1714244116814,-2732.82,0.00039726,30]
[323755851,1714244116837,-500.0,0.00039726,30]
[323755852,1714244116862,-5591.75,0.00039726,30]
[323755853,1714244116886,-500.0,0.00039726,30]
[323755854,1714244116912,-500.0,0.00039726,30]
[323755855,1714244116937,-500.0,0.00039726,30]
[323755856,1714244116962,-500.0,0.00039726,30]
[323755857,1714244116986,-500.0,0.00039726,30]
[323755858,1714244117010,-206.62545202,0.00039726,30]
[323755859,1714244117038,-500.0,0.00039726,30]
[323755860,1714244117062,-500.0,0.00039726,30]
[323755861,1714244117086,-500.0,0.00039726,30]
[323755862,1714244117110,-646.92,0.00039726,30]
[323755863,1714244117134,-500.0,0.00039726,30]
[323755864,1714244117157,-500.0,0.00039726,30]
[323755865,1714244117181,-485.39568371,0.00039726,30]
[323755866,1714244117205,-500.0,0.00039726,30]
[323755867,1714244117228,-500.0,0.00039726,30]
[323755868,1714244117252,-500.0,0.00039726,30]
[323755869,1714244117275,-1795.0,0.00039726,30]
[323755870,1714244117298,-500.0,0.00039726,30]
[323755871,1714244117323,-500.0,0.00039726,30]
[323755872,1714244117346,-500.0,0.00039726,30]
[323755873,1714244117370,-419.26525939,0.00039726,30]
[323755874,1714244117393,-1204.32,0.00039726,30]
[323755875,1714244117425,-38363.06,0.00039726,30]
[323755876,1714244117451,-500.0,0.00039726,30]
[323755877,1714244117475,-1249.5,0.00039726,30]
[323755878,1714244117499,-1183.78,0.00039726,30]
[323755879,1714244117522,-753.84,0.00039726,30]
[323755880,1714244117546,-968.96,0.00039726,30]
[323755881,1714244117569,-500.0,0.00039726,30]
[323755882,1714244117593,-500.0,0.00039726,30]
[323755883,1714244117619,-500.0,0.00039726,30]
[323755884,1714244117642,-1693.9,0.00039726,30]
[323755885,1714244117666,-22601.69,0.00039726,30]
[323755886,1714244117690,-500.0,0.00039726,30]
[323755887,1714244117713,-2251.35,0.00039726,30]
[323755888,1714244117824,-1000.0,0.00039726,30]
[323755889,1714244117847,-500.0,0.00039726,30]
[323755890,1714244117870,-500.0,0.00039726,30]
[323755891,1714244117894,-500.00750304,0.00039726,30]
[323755892,1714244117917,-500.0,0.00039726,30]
[323755893,1714244117942,-3742.78,0.00039726,30]
[323755894,1714244117966,-5471.59,0.00039726,21]
[323755895,1714244117989,-500.0,0.00039726,30]
[323755896,1714244118012,-1425.12,0.00039726,30]
[323755897,1714244118036,-489.10272155,0.00039726,30]
[323755898,1714244118059,-500.0,0.00039726,30]
[323755899,1714244118082,-500.0,0.00039726,30]
[323755900,1714244118105,-500.0,0.00039726,30]
[323755901,1714244118130,-500.0,0.00039726,30]
[323755902,1714244118155,-500.0,0.00039726,30]
[323755903,1714244118181,-2885.28,0.00039726,30]
[323755904,1714244118205,-500.0,0.00039726,30]
[323755905,1714244118230,-500.0,0.00039726,30]
[323755906,1714244118255,-500.0,0.00039726,30]
[323755907,1714244118279,-623.32,0.00039726,30]
[323755908,1714244118302,-522.98766307,0.00039726,30]
[323755909,1714244118326,-7006.88,0.00039726,30]
[323755910,1714244118349,-500.0,0.00039726,30]
[323755911,1714244118393,-416.68244713,0.00039726,30]
[323755912,1714244126955,-802.3617654,0.000275,17]
[323755913,1714244126989,-196182.99483633,0.00034,60]
[323755914,1714244127014,-159.07833484,0.00035,30]
[323755915,1714244127037,-208.24699582,0.00035,15]
[323755916,1714244127068,-214.62755287,0.00039726,30]
[323755917,1714244127092,-509.07046185,0.00039726,30]
[323755918,1714244127116,-500.0,0.00039726,30]
[323755919,1714244127142,-500.0,0.00039726,30]
[323755920,1714244127166,-500.0,0.00039726,30]
[323755921,1714244127192,-500.0,0.00039726,30]
[323755922,1714244127215,-673.61,0.00039726,30]
[323755923,1714244127239,-1755.78,0.00039726,30]
[323755924,1714244127262,-513.66242577,0.00039726,30]
[323755925,1714244127286,-500.0,0.00039726,30]
[323755926,1714244127311,-3959.52,0.00039726,30]
[323755927,1714244127334,-489.94468079,0.00039726,30]
[323755928,1714244127357,-500.0,0.00039726,30]
[323755929,1714244127381,-3752.04,0.00039726,30]
[323755930,1714244127404,-586.15538498,0.00039726,30]
[323755931,1714244127427,-500.0,0.00039726,30]
[323755932,1714244127453,-500.0,0.00039726,30]
[323755933,1714244127477,-500.0,0.00039726,30]
[323755934,1714244127501,-500.0,0.00039726,30]
[323755935,1714244127526,-500.0,0.00039726,30]
[323755936,1714244127550,-500.0,0.00039726,30]
[323755937,1714244127574,-517.88,0.00039726,30]
[323755938,1714244127600,-569.83,0.00039726,30]
[323755939,1714244127624,-546.59,0.00039726,30]
[323755940,1714244127647,-500.0,0.00039726,30]
[323755941,1714244127675,-930.14,0.00039726,30]
[323755942,1714244127703,-795.84,0.00039726,30]
[323755943,1714244127731,-800.62,0.00039726,30]
[323755944,1714244127756,-866.88,0.00039726,30]
[323755945,1714244127779,-363.21673023,0.00039726,30]
[323755946,1714244127805,-500.0,0.00039726,30]
[323755947,1714244127828,-200.0,0.00039726,30]
[323755948,1714244127851,-500.0,0.00039726,30]
[323755949,1714244127875,-1137.4,0.00039726,30]
[323755950,1714244127899,-500.0,0.00039726,30]
[323755951,1714244127922,-500.0,0.00039726,30]
[323755952,1714244127945,-184.42379549,0.00039726,30]
[323755953,1714244127969,-1576.75,0.00039726,30]
[323755954,1714244127992,-500.0,0.00039726,30]
[323755955,1714244128016,-500.0,0.00039726,30]
[323755956,1714244128039,-500.0,0.00039726,30]
[323755957,1714244128061,-500.0,0.00039726,30]
[323755958,1714244128087,-500.0,0.00039726,30]
[323755959,1714244128111,-500.0,0.00039726,30]
[323755960,1714244128135,-7609.81,0.00039726,30]
[323755961,1714244128158,-500.0,0.00039726,30]
[323755962,1714244128182,-500.0,0.00039726,30]
[323755963,1714244128207,-13832.66,0.00039726,30]
[323755964,1714244128230,-490.0555475,0.00039726,30]
[323755965,1714244128253,-1385.73,0.00039726,30]
[323755966,1714244128276,-500.0,0.00039726,30]
[323755967,1714244128299,-502.64266896,0.00039726,30]
[323755968,1714244128324,-238.0754828,0.00039726,30]
[323755969,1714244128348,-813.07,0.00039726,30]
[323755970,1714244128372,-500.0,0.00039726,30]
[323755971,1714244128396,-1397.98,0.00039726,30]
[323755972,1714244128422,-1664.76,0.00039726,30]
[323755973,1714244128447,-500.0,0.00039726,30]
[323755974,1714244128471,-1463.41,0.00039726,30]
[323755975,1714244128494,-1463.41,0.00039726,31]
[323755976,1714244128517,-1463.41,0.00039726,32]
[323755977,1714244128541,-1463.41,0.00039726,33]
[323755978,1714244128564,-500.0,0.00039726,30]
[323755979,1714244128587,-1463.41,0.00039726,34]
[323755980,1714244128609,-1463.41,0.00039726,35]
[323755981,1714244128632,-500.0,0.00039726,30]
[323755982,1714244128655,-1463.41,0.00039726,36]
[323755983,1714244128678,-1463.41,0.00039726,37]
[323755984,1714244128702,-500.0,0.00039726,30]
[323755985,1714244128729,-1463.41,0.00039726,38]
[323755986,1714244128844,-500.0,0.00039726,30]
[323755987,1714244128897,-1463.41,0.00039726,39]
[323755988,1714244128921,-1463.41,0.00039726,40]
[323755989,1714244128950,-1463.41,0.00039726,41]
[323755990,1714244128974,-1463.41,0.00039726,42]
[323755991,1714244128997,-1463.41,0.00039726,43]
[323755992,1714244129020,-1463.41,0.00039726,44]
[323755993,1714244129043,-500.0,0.00039726,30]
[323755994,1714244129067,-1463.41,0.00039726,45]
[323755995,1714244129093,-1463.41,0.00039726,46]
[323755996,1714244129118,-500.0,0.00039726,30]
[323755997,1714244129143,-1463.41,0.00039726,47]
[323755998,1714244129167,-1463.41,0.00039726,48]
[323755999,1714244129192,-1463.41,0.00039726,49]
[323756000,1714244129215,-1463.41,0.00039726,49]
[323756001,1714244129238,-1463.41,0.00039726,49]
[323756002,1714244129263,-1463.41,0.00039726,49]
[323756003,1714244129287,-1463.47933767,0.00039726,49]
[323756004,1714244129310,-500.0,0.00039726,30]
[323756005,1714244129334,-500.0,0.00039726,30]
[323756006,1714244129358,-500.0,0.00039726,30]
[323756007,1714244129382,-4657.23,0.00039726,30]
[323756008,1714244129406,-500.0,0.00039726,30]
[323756009,1714244129430,-500.0,0.00039726,30]
[323756010,1714244129454,-500.0,0.00039726,30]
[323756011,1714244129479,-485.29550269,0.00039726,30]
[323756012,1714244129503,-9171.56,0.00039726,30]
[323756013,1714244129526,-500.0,0.00039726,30]
[323756014,1714244129551,-533.88,0.00039726,30]
[323756015,1714244129575,-500.0,0.00039726,30]
[323756016,1714244129599,-618.0,0.00039726,30]
[323756017,1714244129623,-500.0,0.00039726,30]
[323756018,1714244129646,-500.0,0.00039726,30]
[323756019,1714244129671,-1230.33,0.00039726,30]
[323756020,1714244129697,-500.0,0.00039726,30]
[323756021,1714244129724,-1230.33,0.00039726,31]
[323756022,1714244129747,-1230.33,0.00039726,32]
[323756023,1714244129771,-1230.33,0.00039726,33]
[323756024,1714244129795,-17883.78,0.00039726,30]
[323756025,1714244129820,-1230.33,0.00039726,34]
[323756026,1714244129843,-1230.33,0.00039726,35]
[323756027,1714244129867,-1230.33,0.00039726,36]
[323756028,1714244129890,-1230.33,0.00039726,37]
[323756029,1714244129913,-1230.33,0.00039726,38]
[323756030,1714244129937,-1230.33,0.00039726,39]
[323756031,1714244129961,-1230.33,0.00039726,40]
[323756032,1714244129987,-1230.33,0.00039726,41]
[323756033,1714244130011,-1570.12,0.00039726,30]
[323756034,1714244130034,-1230.33,0.00039726,42]
[323756035,1714244130058,-1230.33,0.00039726,43]
[323756036,1714244130082,-1230.33,0.00039726,44]
[323756037,1714244130107,-1230.33,0.00039726,45]
[323756038,1714244130130,-1230.33,0.00039726,46]
[323756039,1714244130154,-1230.33,0.00039726,47]
[323756040,1714244130179,-1230.33,0.00039726,48]
[323756041,1714244130204,-1230.33,0.00039726,49]
[323756042,1714244130228,-1230.33,0.00039726,49]
[323756043,1714244130252,-1230.33,0.00039726,49]
[323756044,1714244130277,-1230.33,0.00039726,49]
[323756045,1714244130301,-1230.43467142,0.00039726,49]
[323756046,1714244130324,-500.0,0.00039726,30]
[323756047,1714244130348,-500.0,0.00039726,30]
[323756048,1714244130371,-2443.03,0.00039726,30]
[323756049,1714244130395,-986.61,0.00039726,30]
[323756050,1714244130418,-500.0,0.00039726,30]
[323756051,1714244130443,-500.0,0.00039726,30]
[323756052,1714244130466,-500.0,0.00039726,30]
[323756053,1714244130490,-449.59563502,0.00039726,30]
[323756054,1714244130513,-500.0,0.00039726,30]
[323756055,1714244130536,-500.0,0.00039726,30]
[323756056,1714244130560,-500.0,0.00039726,30]
[323756057,1714244130583,-500.0,0.00039726,30]
[323756058,1714244130607,-500.0,0.00039726,30]
[323756059,1714244130631,-500.0,0.00039726,30]
[323756060,1714244130654,-722.0,0.00039726,30]
[323756061,1714244130678,-959.09,0.00039726,30]
[323756062,1714244130705,-500.0,0.00039726,30]
[323756063,1714244130733,-566.08,0.00039726,30]
[323756064,1714244130758,-915.28,0.00039726,30]
[323756065,1714244130781,-3057.3,0.00039726,30]
[323756066,1714244130808,-500.0,0.00039726,30]
[323756067,1714244130832,-1211.59,0.00039726,30]
[323756068,1714244130856,-937.67,0.00039726,30]
[323756069,1714244130881,-535.5,0.00039726,30]
[323756070,1714244130905,-201.05787135,0.00039726,30]
[323756071,1714244130928,-500.0,0.00039726,30]
[323756072,1714244130954,-500.0,0.00039726,30]
[323756073,1714244130978,-2465.08,0.00039726,30]
[323756074,1714244131127,-3053.21,0.00039726,30]
[323756075,1714244131152,-504.14760052,0.00039726,30]
[323756076,1714244131177,-500.0,0.00039726,30]
[323756077,1714244131202,-500.0,0.00039726,30]
[323756078,1714244131226,-500.0,0.00039726,30]
[323756079,1714244131251,-864.46,0.00039726,30]
[323756080,1714244131274,-500.0,0.00039726,30]
[323756081,1714244131297,-6178.87,0.00039726,30]
[323756082,1714244131321,-798.97,0.00039726,30]
[323756083,1714244131346,-654.33,0.00039726,30]
[323756084,1714244131373,-657.1,0.00039726,30]
[323756085,1714244131398,-524.23,0.00039726,30]
[323756086,1714244131424,-500.0,0.00039726,30]
[323756087,1714244131451,-500.89344831,0.00039726,30]
[323756088,1714244131478,-29325.89,0.00039726,30]
[323756089,1714244131502,-1053.01,0.00039726,30]
[323756090,1714244131525,-500.0,0.00039726,30]
[323756091,1714244131547,-200.0,0.00039726,30]
[323756092,1714244131571,-894.91,0.00039726,30]
[323756093,1714244131595,-500.0,0.00039726,30]
[323756094,1714244131620,-3489.69,0.00039726,30]
[323756095,1714244131642,-535.13,0.00039726,30]
[323756096,1714244131666,-1748.5,0.00039726,30]
[323756097,1714244131690,-941.3,0.00039726,30]
[323756098,1714244131721,-500.0,0.00039726,30]
[323756099,1714244131745,-556.69,0.00039726,30]
[323756100,1714244131769,-500.0,0.00039726,30]
[323756101,1714244131792,-1365.74,0.00039726,30]
[323756102,1714244131815,-500.0,0.00039726,30]
[323756103,1714244131839,-928.59,0.00039726,30]
[323756104,1714244131862,-500.0,0.00039726,30]
[323756105,1714244131886,-158.0,0.0003987,35]
[323756106,1714244131910,-498.0,0.0003987,35]
[323756107,1714244131935,-158.0,0.0003988,35]
[323756108,1714244131959,-498.0,0.0003988,35]
[323756109,1714244131982,-158.0,0.0003989,35]
[323756110,1714244132007,-498.0,0.0003989,35]
[323756111,1714244132034,-1815.0,0.000399,15]
[323756112,1714244132058,-1815.0,0.000399,15]
[323756113,1714244132084,-1815.0,0.000399,15]
[323756114,1714244132107,-1434.0,0.000399,15]
[323756115,1714244132130,-158.0,0.0003998,35]
[323756116,1714244132155,-498.0,0.0003998,35]
[323756117,1714244132179,-158.0,0.0003999,35]
[323756118,1714244132205,-498.0,0.0003999,35]
[323756119,1714244132228,-892.32522979,0.0004,120]
[323756120,1714244132253,-210.09817641,0.0004,120]
[323756121,1714244132277,-2000.0,0.0004,120]
[323756122,1714244132301,-1815.0,0.0004,15]
[323756123,1714244132325,-1815.0,0.0004,15]
[323756124,1714244132348,-1072.06,0.0004,120]
[323756125,1714244132372,-500.0,0.0004,31]
[323756126,1714244132396,-500.0,0.0004,31]
[323756127,1714244132420,-500.0,0.0004,31]
[323756128,1714244132445,-500.0,0.0004,31]
[323756129,1714244132468,-500.0,0.0004,31]
[323756130,1714244132493,-500.0,0.0004,31]
[323756131,1714244132517,-500.0,0.0004,31]
[323756132,1714244132541,-500.0,0.0004,31]
[323756133,1714244132565,-500.0,0.0004,31]
[323756134,1714244132589,-500.0,0.0004,31]
[323756135,1714244132612,-500.0,0.0004,31]
[323756136,1714244132637,-500.0,0.0004,31]
[323756137,1714244132662,-500.0,0.0004,31]
[323756138,1714244132688,-500.0,0.0004,31]
[323756139,1714244132716,-500.0,0.0004,31]
[323756140,1714244132746,-500.0,0.0004,31]
[323756141,1714244132773,-500.0,0.0004,31]
[323756142,1714244132798,-500.0,0.0004,31]
[323756143,1714244132822,-500.0,0.0004,31]
[323756144,1714244132846,-500.0,0.0004,31]
[323756145,1714244132874,-500.0,0.0004,31]
[323756146,1714244132897,-500.0,0.0004,31]
[323756147,1714244132920,-500.0,0.0004,31]
[323756148,1714244132945,-1150.85,0.0004,31]
[323756149,1714244132969,-500.0,0.0004,31]
[323756150,1714244132992,-200.68728007,0.0004,31]
[323756151,1714244133015,-500.0,0.0004,31]
[323756152,1714244133040,-500.0,0.0004,31]
[323756153,1714244133063,-500.0,0.0004,31]
[323756154,1714244133087,-731.13,0.0004,31]
[323756155,1714244133111,-500.0,0.0004,31]
[323756156,1714244133134,-500.0,0.0004,31]
[323756157,1714244133158,-500.0,0.0004,31]
[323756158,1714244133309,-500.0,0.0004,31]
[323756159,1714244133335,-500.0,0.0004,31]
[323756160,1714244133360,-453.9079122,0.0004,31]
[323756161,1714244133384,-1202.29,0.0004,31]
[323756162,1714244133410,-386.85694503,0.0004,31]
[323756163,1714244133434,-500.0,0.0004,31]
[323756164,1714244133459,-500.0,0.0004,31]
[323756165,1714244133483,-500.0,0.0004,31]
[323756166,1714244133507,-425.72689394,0.0004,31]
[323756167,1714244133531,-500.0,0.0004,31]
[323756168,1714244133556,-495.31890524,0.0004,31]
[323756169,1714244133579,-500.0,0.0004,31]
[323756170,1714244133604,-500.0,0.0004,31]
[323756171,1714244133628,-500.0,0.0004,31]
[323756172,1714244133652,-500.0,0.0004,31]
[323756173,1714244133677,-500.0,0.0004,31]
[323756174,1714244133702,-535.14494302,0.0004,31]
[323756175,1714244133730,-500.0,0.0004,31]
[323756176,1714244133754,-500.0,0.0004,31]
[323756177,1714244133778,-2398.07,0.0004,31]
[323756178,1714244133802,-500.0,0.0004,31]
[323756179,1714244133826,-500.0,0.0004,31]
[323756180,1714244133850,-29.74298369,0.0004,31]
[323756196,1714244339112,1000.0,0.00032262,90]
[323756197,1714244339429,999.699999,0.00032262,90]
[323756198,1714244339975,1000.0,0.00032348,120]
[323756199,1714244340490,1000.0,0.00032348,120]
[323756200,1714244341005,503.099999,0.00032348,120]
[323756201,1714244408212,6000.0,0.00032348,15]
[323756204,1714244544753,177.75,0.00032348,30]
[323756208,1714244633698,1000.0,0.00032348,120]
[323756209,1714244634207,1000.0,0.00032348,120]
[323756210,1714244634676,503.099999,0.00032348,120]
[323756216,1714244842174,-461.92467003,0.00012784,2]
[323756218,1714244846204,-64.70885256,0.00012784,2]
[323756219,1714244846224,-154.82968734,0.00012785,2]
[323756220,1714244846243,-250.0,0.00012786,2]
[323756221,1714244846263,-4244.66626193,0.000133,7]
[323756222,1714244846283,-300.0,0.0001351,2]
[323756223,1714244846305,-300.0,0.0001351,2]
[323756224,1714244846328,-24900.0,0.00013511,2]
[323756225,1714244846349,-177.2361766,0.00013699,2]
[323756226,1714244846371,-423.24946758,0.00014,2]
[323756227,1714244846391,-1228.81174546,0.00014727,2]
[323756228,1714244846412,-32330.75587952,0.00014727,2]
[323756229,1714244846434,-280.68822047,0.00014728,2]
[323756230,1714244846455,-420.0,0.00014808,2]
[323756231,1714244846475,-420.0,0.00014861,2]
[323756232,1714244846500,-680.3068915,0.00015,5]
[323756233,1714244846521,-527.0,0.00016231,2]
[323756234,1714244846543,-587.0,0.00016347,2]
[323756235,1714244846566,-823.0,0.00017981,2]
[323756236,1714244846585,-874.4,0.0001811,3]
[323756237,1714244846604,-603.57234398,0.000185,2]
[323756238,1714244846625,-874.4,0.0001892,3]
[323756239,1714244846660,-189.30063706,0.0001897,2]
[323756240,1714244846683,-517.31861838,0.00019178,2]
[323756241,1714244846705,-568.88864584,0.00019178,2]
[323756242,1714244846727,-500.0,0.00019178,2]
[323756243,1714244846749,-500.0,0.00019178,2]
[323756244,1714244846770,-620.84236101,0.00019178,2]
[323756245,1714244846792,-500.0,0.00019178,2]
[323756246,1714244846816,-610.27897714,0.00019178,2]
[323756247,1714244846837,-393.53937146,0.00019178,2]
[323756248,1714244846858,-500.0,0.00019178,2]
[323756249,1714244846878,-160.001869,0.00019178,2]
[323756250,1714244846899,-160.089434,0.00019178,2]
[323756251,1714244846925,-874.4,0.0001973,3]
[323756252,1714244846947,-1152.0,0.00019779,2]
[323756253,1714244846970,-461.92467003,0.00019796,2]
[323756254,1714244846992,-257.29627275,0.00019796,2]
[323756255,1714244847014,-130297.03790277,0.00019797,2]
[323756263,1714244935282,1000.0,0.0003233,120]
[323756264,1714244935953,509.9,0.0003233,120]
[323756476,1714245051698,-603.57234398,0.00018695,2]
[323756477,1714245051708,-163.11467906,0.00018696,2]
[323756478,1714245051717,-300.0,0.00018795,2]
[323756479,1714245051726,-9977.80606081,0.00018796,2]
[323756480,1714245052077,-5474.70881716,0.00018796,2]
[323756488,1714246029141,-180.0,0.00014148,2]
[323756489,1714246029162,-300.0,0.00017513,2]
[323756490,1714246029183,-24900.0,0.00017514,2]
[323756491,1714246029203,-591.43831756,0.0001816,3]
[323756619,1714246238924,-623.05077972,0.00017511,2]
[323756719,1714246240891,-412.08755327,0.00017511,2]
[323756939,1714246243859,-22.4673045,0.00017511,2]
[323756940,1714246243869,-162.32899898,0.00017512,2]
[323756941,1714246243878,-363.86320338,0.0001816,2]
[323756942,1714246243888,-1116.2,0.0001819,3]
[323756943,1714246243897,-459.88228259,0.00018243,2]
[323756944,1714246243906,-1556.95675001,0.000184,2]
[323756945,1714246243915,-603.57234398,0.00018899,2]
[323756946,1714246243925,-3240.55489145,0.000189,2]
[323756947,1714246243936,-2511.72014074,0.000189,2]
[323756948,1714246243946,-300.0,0.00018959,2]
[323756949,1714246243955,-1116.2,0.0001899,3]
[323756950,1714246243964,-160.258523,0.00019178,2]
[323756951,1714246243973,-159.935209,0.00019178,2]
[323756952,1714246243982,-638.74,0.00019696,2]
[323756953,1714246243991,-1116.2,0.0001979,3]
[323756954,1714246244002,-526.13833593,0.00019796,2]
[323756955,1714246244012,-215.76996313,0.00019797,2]
[323756956,1714246244020,-706.77782139,0.00019797,2]
[323756957,1714246244030,-309.64391027,0.00019797,2]
[323756958,1714246244038,-600.0,0.00019797,2]
[323756959,1714246244047,-945.7056575,0.00019797,2]
[323756960,1714246244056,-155.87018974,0.00019797,2]
[323756961,1714246244065,-157.08875643,0.00019798,2]
[323756962,1714246244088,-240.49274537,0.00019798,2]
[323756963,1714246244098,-7870.62977803,0.00019798,2]